Cogmind - Beta 13 @@@ ROGUE MODE // 2024.04.03 @ 18:48:29 Player: Ciaphas Result: Self-destructed Performance ------------- Evolutions (1) 500 Regions Visited (5) 1000 Robots Destroyed (50) 250 Value Destroyed (1299) 1299 Prototype IDs (27) 540 Alien Tech Used (0) 0 Bonus (300) 300 TOTAL SCORE: 3889 Bonus ------- Aligned with FarCom 300 Cogmind --------- Core Integrity 287/400 Matter 300/300 Energy 265/265 System Corruption 5% Temperature Cool (0) Movement Treading (163) Location -9/Exiles Parts ------- > --- POWER (1) -------- Improved Ion Engine > --- PROPULSION (3) --- Light Treads Light Treads Armored Treads > --- UTILITY (3) ------ Large Storage Unit Structural Scanner Layered Light Armor Plating > --- WEAPON (2) ------- Heavy Assault Rifle Gauss Rifle > --- INVENTORY (15) --- Light Ion Engine Titanium Leg Titanium Leg High-capacity Matter Pod (200) Structural Scanner Experimental Sensor Array Light Armor Plating Hacking Suite Heavy Assault Rifle Rocket Launcher Mining Laser Heavy Flail Peak State ------------ > --- POWER ------------ Improved Ion Engine > --- PROPULSION ------- Light Treads Light Treads Armored Treads > --- UTILITY ---------- Large Storage Unit Structural Scanner Layered Light Armor Plating > --- WEAPON ----------- Heavy Assault Rifle Gauss Rifle > --- INVENTORY -------- Light Ion Engine Titanium Leg Titanium Leg High-capacity Matter Pod Structural Scanner Experimental Sensor Array Light Armor Plating Hacking Suite Heavy Assault Rifle Rocket Launcher Mining Laser Heavy Flail [Rating: 22] Favorites ----------- Power Ion Engine Engine Ion Engine Power Core Light Nuclear Core Propulsion Light Treads Treads Light Treads Leg Titanium Leg Utility Structural Scanner Device Structural Scanner Storage Small Storage Unit Protection Light Armor Plating Weapon Heavy Assault Rifle Energy Gun Medium Laser Ballistic Gun Heavy Assault Rifle Launcher Rocket Launcher Impact Weapon Heavy Flail Build | -11 -10 -10 -9 -9 -9 ------- Run | Yrd Mat Min Mat Min Exi Slots Evolved 2 | . . . 2 . . Power . | . . . . . . Propulsion 1 | . . . 1 . . Utility 1 | . . . 1 . . Weapon . | . . . . . . Parts Attached 31 | 3 7 3 13 5 . Power 5 | 1 . 1 3 . . Engine 4 | 1 . 1 2 . . Core 1 | . . . 1 . . Reactor . | . . . . . . Propulsion 8 | 2 1 1 4 . . Treads 7 | 2 1 1 3 . . Leg 1 | . . . 1 . . Wheel . | . . . . . . Hover . | . . . . . . Flight . | . . . . . . Utility 9 | . 3 . 4 2 . Device 3 | . 2 . 1 . . Storage 1 | . . . 1 . . Processor . | . . . . . . Hackware . | . . . . . . Protection 5 | . 1 . 2 2 . Artifact . | . . . . . . Weapon 9 | . 3 1 2 3 . Energy Gun 1 | . 1 . . . . Energy Cannon . | . . . . . . Ballistic Gun 6 | . 2 1 1 2 . Ballistic Cannon . | . . . . . . Launcher 1 | . . . . 1 . Special Weapon . | . . . . . . Impact Weapon 1 | . . . 1 . . Slashing Weapon . | . . . . . . Piercing Weapon . | . . . . . . Special Melee Weapon . | . . . . . . Unidentified Prototypes . | . . . . . . Parts Lost 6 | . 1 . 5 . . Power 2 | . . . 2 . . Propulsion 1 | . . . 1 . . Utility 2 | . 1 . 1 . . Weapon 1 | . . . 1 . . Highest Loss Streak 5 | . 1 . 5 . . To Critical Strikes . | . . . . . . Average Slot Usage (%) 96 | . 98 100 91 99 100 Engine 12 | . 14 14 10 11 11 Treads 28 | . 28 28 27 33 33 Device 10 | . 7 14 9 11 11 Storage 12 | . 14 14 11 11 11 Protection 6 | . 4 . 9 10 11 Energy Gun 2 | . 9 . . . . Ballistic Gun 20 | . 18 28 18 21 22 Impact Weapon 1 | . . . 3 . . Naked Turns . | . . . . . . Heaviest Build 39 | 14 17 17 37 39 39 Greatest Support 60 | 40 40 40 60 60 60 Greatest Overweight (x) . | . . . . . . Average Overweight (x) . | . . . . . . Largest Inventory Capacity 15 | 8 8 8 15 15 15 Average Capacity 10 | 8 8 8 10 15 15 Most Carried 12 | 7 8 8 9 12 12 Average Carried 7 | 2 5 7 7 9 12 Final Capacity 15 | 8 8 8 15 15 15 Final Carried 12 | 2 8 8 9 12 12 Class Distribution -------------------- 100% | Mutant Dominant Class ---------------- Mutant | -10/Materials Mutant | -10/Mines Mutant | -9/Materials Mutant | -9/Mines Mutant | -9/Exiles Resources | -11 -10 -10 -9 -9 -9 ----------- Run | Yrd Mat Min Mat Min Exi Matter Collected 1285 | 251 383 104 472 75 . Remotely . | . . . . . . Salvage Created 1772 | 116 430 109 1082 35 . Parts 115 | 2 37 10 61 5 . Haulers Intercepted 1 | . . . 1 . . Recyclers Shooed 3 | . . . 3 . . Parts Field Recycled . | . . . . . . Retrieved Matter . | . . . . . . Parts Self-Destructed . | . . . . . . Prevented . | . . . . . . Kills | -11 -10 -10 -9 -9 -9 ------- Run | Yrd Mat Min Mat Min Exi Combat Hostiles Destroyed 36 | . 11 3 19 3 . Melee 4 | . . . 4 . . Guns 28 | . 11 3 14 . . AOE 3 | . . . . 3 . Classes Destroyed 12 | 2 4 . 5 1 . Worker 1 | . . . . 1 . Builder 1 | . . . 1 . . Tunneler 1 | 1 . . . . . Hauler 1 | . . . 1 . . Recycler 3 | 1 1 . 1 . . Operator 2 | . 1 . 1 . . Watcher 5 | . 1 . 4 . . Swarmer 8 | . 5 . . 3 . Grunt 21 | . 6 3 12 . . Brawler 1 | . . . 1 . . Duelist 1 | . . . 1 . . Sentry 5 | . . . 5 . . Best Kill Streak 7 | 1 3 2 7 3 . Combat Bots Only 5 | . 3 2 5 3 . Max Kills in Single Turn 3 | 1 1 1 1 3 . Gunslinging . | . . . . . . Exploded 3 | . . . . 3 . Melee 1 | . . . 1 . . Uniques/NPCs Destroyed . | . . . . . . Combat | -11 -10 -10 -9 -9 -9 -------- Run | Yrd Mat Min Mat Min Exi Hostile Shots Fired 158 | . 57 15 81 5 . Missed 45 | . 18 5 21 1 . Damage Taken 1593 | . 411 129 1015 38 . Core 205 | . 57 35 94 19 . Absorbed by Shields . | . . . . . . Regen/Repaired (Parts) 222 | . . . 222 . . Core Remaining (%) 81 | 100 . 63 . . . Volleys Fired 106 | 7 32 9 57 1 . Largest 2 | 2 2 2 2 1 . Hottest 70 | 70 70 46 46 33 . Shots Fired 214 | 14 64 18 115 3 . Gun 213 | 14 64 18 115 2 . Cannon . | . . . . . . Launcher 1 | . . . . 1 . Special . | . . . . . . Kinetic 188 | 7 46 18 115 2 . Thermal 25 | 7 18 . . . . Explosive 1 | . . . . 1 . Electromagnetic . | . . . . . . Robot Hit Streak 10 | 5 10 7 9 1 . Robot Miss Streak 3 | 1 3 3 2 1 . Penetration Max . | . . . . . . Secondary Targets 5 | . 1 . 4 . . Max Gunslinging Chain 1 | . 1 . 1 . . Shots Hit Robots 140 | 9 39 12 79 1 . Core Hits 72 | 3 24 6 35 4 . Critical Kills 2 | . . . 2 . . Critical Parts Destroyed 2 | . . . 2 . . Critical Strikes 4 | . . . 4 . . Smash 4 | . . . 4 . . Melee Attacks 14 | . . . 14 . . Impact 14 | . . . 14 . . Slashing . | . . . . . . Piercing . | . . . . . . Sneak Attacks 1 | . . . 1 . . Combat Hostiles . | . . . . . . Follow-up Attacks . | . . . . . . Damage Inflicted 2688 | 114 558 188 1648 180 . Guns 1942 | 114 558 188 1066 16 . Cannons . | . . . . . . Explosions 157 | . . . . 157 . Melee 566 | . . . 566 . . Ramming 23 | . . . 16 7 . Kinetic 1718 | 65 383 188 1066 16 . Thermal 224 | 49 175 . . . . Explosive 157 | . . . . 157 . Electromagnetic . | . . . . . . Impact 566 | . . . 566 . . Slashing . | . . . . . . Piercing . | . . . . . . Highest Corruption 5 | . . . 5 5 5 Average Corruption 4 | . . . 4 5 5 Corruption Purged . | . . . . . . Corruption Blocked . | . . . . . . Effects 37 | . . . 19 15 3 Message Errors 8 | . . . 4 3 1 Matter Fused 4 | . . . 3 1 . Heat Flow Errors 4 | . . . 2 2 . Energy Discharges 3 | . . . 2 1 . Data Loss (minor) 6 | . . . 2 3 1 Data Loss (major) 5 | . . . 2 2 1 Misfires 5 | . . . 3 2 . Alerts 2 | . . . 1 1 . Overload Shots . | . . . . . . Overflow Damage 233 | . . . 233 . . Projectiles . | . . . . . . Explosions . | . . . . . . Melee 233 | . . . 233 . . Knockbacks 1 | . . . 1 . . Impact 1 | . . . 1 . . Kinetic . | . . . . . . Secondary . | . . . . . . Self-Inflicted Damage . | . . . . . . Shots . | . . . . . . Rammed 4 | . . . 3 1 . Targets Rammed 4 | . . . 3 1 . Kicked . | . . . . . . Crushed . | . . . . . . Highest Temperature 306 | 54 306 4 158 206 . Average Temperature 70 | 25 112 2 24 92 . Received Heat Transfer 540 | . 171 72 297 . . Effects 1 | . 1 . . . . Energy Bleed 1 | . 1 . . . . Siege Activations . | . . . . . . Robots Corrupted . | . . . . . . Combat Hostiles . | . . . . . . Parts Fried 4 | . . . 4 . . Impact Corruptions 6 | . . . 6 . . Robots Melted . | . . . . . . Combat Hostiles . | . . . . . . Parts Melted 1 | . 1 . . . . Heat Transferred 666 | 148 518 . . . . Parts Sabotaged . | . . . . . . Parts Stolen . | . . . . . . Parts Stripped . | . . . . . . Power Chain Reactions . | . . . . . . Alert | -11 -10 -10 -9 -9 -9 ------- Run | Yrd Mat Min Mat Min Exi Peak Influence 274 | 10 274 128 243 127 . Initial 48 | . 6 48 . 48 . Average 71 | 4 81 35 85 76 . Maximum Alert Level 1 | . 1 . 1 . . Low Security (%) 97 | 100 98 100 93 100 . Level 1 2 | . 1 . 6 . . Level 2 . | . . . . . . Level 3 . | . . . . . . Level 4 . | . . . . . . Level 5 . | . . . . . . High Security . | . . . . . . Max Security . | . . . . . . Squads Dispatched 6 | . 2 1 3 . . Investigation 4 | . 1 1 2 . . Extermination . | . . . . . . Reinforcement 2 | . 1 . 1 . . Assault . | . . . . . . Garrison . | . . . . . . Intercept . | . . . . . . Searches Triggered . | . . . . . . Construction Impeded . | . . . . . . Haulers Reinforced . | . . . . . . Active Scanning Responses . | . . . . . . Cargo Convoy Interrupts . | . . . . . . Stealth | -11 -10 -10 -9 -9 -9 --------- Run | Yrd Mat Min Mat Min Exi Distress Signals 4 | . 1 . 3 . . Communications Jammed . | . . . . . . Distress Signals . | . . . . . . Times Spotted 62 | . 24 3 33 2 . Peak Tracking Total 6 | . 5 2 6 3 . Tactical Retreats 2 | . 2 . . . . Traps | -11 -10 -10 -9 -9 -9 ------- Run | Yrd Mat Min Mat Min Exi Traps Triggered 2 | . 1 . 1 . . Indirectly . | . . . . . . Trap Hack Attempts . | . . . . . . Triggered . | . . . . . . Disarmed . | . . . . . . Reprogrammed . | . . . . . . Reused . | . . . . . . Traps Extracted . | . . . . . . Installed . | . . . . . . Triggered . | . . . . . . Machines | -11 -10 -10 -9 -9 -9 ---------- Run | Yrd Mat Min Mat Min Exi Machines Disabled . | . . . . . . Max in Single Turn . | . . . . . . Machines Repaired . | . . . . . . Machines Dismantled . | . . . . . . Machines Sabotaged . | . . . . . . Overloaded Fab Kills . | . . . . . . Hacking | -11 -10 -10 -9 -9 -9 --------- Run | Yrd Mat Min Mat Min Exi Machines Accessed 13 | . 4 1 6 1 1 Terminals 9 | . 4 . 5 . . Fabricators . | . . . . . . Repair Stations 1 | . . . 1 . . Recycling Units . | . . . . . . Scanalyzers . | . . . . . . Garrison Access . | . . . . . . Total Hacks 31 | . 12 1 16 1 1 Successful 17 | . 5 1 9 1 1 Failed 14 | . 7 . 7 . . Catastrophic 3 | . 1 . 2 . . Database Lockouts . | . . . . . . Manual 15 | . 7 . 7 . 1 Terminals 26 | . 12 . 14 . . Fabricators . | . . . . . . Repair Stations 2 | . . . 2 . . Recycling Units . | . . . . . . Scanalyzers . | . . . . . . Garrison Access . | . . . . . . Terminal Hacks 12 | . 4 1 5 1 1 Robot Analysis 2 | . 1 . 1 . . Prototype ID Bank 2 | . 1 . 1 . . Open Door 2 | . . 1 . 1 . Alert Level 1 | . . . 1 . . Unreport Threat 1 | . . . 1 . . Recall Investigation 1 | . . . 1 . . Hauler Manifests 2 | . 2 . . . . Derelict Proto ID Bank 1 | . . . . . 1 Fabricator Hacks . | . . . . . . Repair Station Hacks 2 | . . . 2 . . Scan Component 1 | . . . 1 . . Repair 1 | . . . 1 . . Recycling Unit Hacks . | . . . . . . Scanalyzer . | . . . . . . Garrison Access Hacks . | . . . . . . Unauthorized Hacks 3 | . 1 . 2 . . Terminals 3 | . 1 . 2 . . Botnet 3 | . 1 . 2 . . Fabricators . | . . . . . . Repair Stations . | . . . . . . Recycling Units . | . . . . . . Scanalyzers . | . . . . . . Garrison Access . | . . . . . . Data Cores Recovered . | . . . . . . Used . | . . . . . . Hacking Detections 8 | . 4 . 4 . . Full Trace Events 1 | . . . 1 . . Feedback Events . | . . . . . . Feedback Blocked . | . . . . . . Robot Schematics Acquired . | . . . . . . Robots Built . | . . . . . . Authchips . | . . . . . . Time . | . . . . . . Total Robot Build Rating . | . . . . . . Part Schematics Acquired . | . . . . . . Parts Built . | . . . . . . Authchips . | . . . . . . Time . | . . . . . . Total Part Build Rating . | . . . . . . Parts Repaired 1 | . . . 1 . . Time 38 | . . . 38 . . Parts Recycled . | . . . . . . Recycled Matter . | . . . . . . Retrieved Matter . | . . . . . . Retrieved Components . | . . . . . . Parts Scanalyzed . | . . . . . . Part Schematics Acquired . | . . . . . . Parts Damaged . | . . . . . . Bothacking | -11 -10 -10 -9 -9 -9 ------------ Run | Yrd Mat Min Mat Min Exi Used RIF Installer . | . . . . . . Robots Hacked . | . . . . . . Non-combat . | . . . . . . Combat . | . . . . . . Robot Hacks Applied . | . . . . . . Relay Couplers Released . | . . . . . . Fabnet Peak Effective % . | . . . . . . Robots Rewired . | . . . . . . Allies Hacked . | . . . . . . Hacks Repelled . | . . . . . . Allies | -11 -10 -10 -9 -9 -9 -------- Run | Yrd Mat Min Mat Min Exi Total Allies . | . . . . . . Largest Group . | . . . . . . Highest-Rated Group . | . . . . . . Highest-Rated Ally . | . . . . . . Total Orders . | . . . . . . Ally Attacks . | . . . . . . Total Damage . | . . . . . . Kills . | . . . . . . Allies Corrupted . | . . . . . . Allies Melted . | . . . . . . Intel | -11 -10 -10 -9 -9 -9 ------- Run | Yrd Mat Min Mat Min Exi Robot Analysis Total 2 | . 1 . 1 . . Derelict Logs Recovered 4 | . . 2 . 2 . Drone Launches . | . . . . . . Drone Recoveries . | . . . . . . Exploration | -11 -10 -10 -9 -9 -9 ------------- Run | Yrd Mat Min Mat Min Exi Turns Passed 3655 | 63 850 694 1247 618 183 Spaces Moved 1934 | 23 455 390 582 372 112 Core . | . . . . . . Treads 1934 | 23 455 390 582 372 112 Legs . | . . . . . . Wheels . | . . . . . . Hover . | . . . . . . Flight . | . . . . . . Fastest Speed 160 | 160 160 160 163 163 163 Average Speed 162 | 160 160 163 164 163 163 Slowest Speed 165 | 160 160 165 165 163 163 Overloaded Moves . | . . . . . . Propulsion Burnouts . | . . . . . . Robots Hopped 4 | . . . . 4 . Cave-ins Triggered . | . . . . . . Exploration Rate (%) 58 | 3 79 86 51 94 39 Regions Visited 5 Branch Regions 3 Pre-discovered Areas 2 | . . 1 . 1 . Known Exits Taken 1 | . . . 1 . . Unknown Exits Taken 4 | 1 1 1 . 1 . Scrap Searched 1 | . . . . 1 . Spaces Dug . | . . . . . . Terrain Destroyed 5 | . . . . 5 . Melee . | . . . . . . Projectile . | . . . . . . AOE 5 | . . . . 5 . Terrain Rammed . | . . . . . . Walls Destroyed . | . . . . . . Machines Disabled . | . . . . . . Actions | -11 -10 -10 -9 -9 -9 --------- Run | Yrd Mat Min Mat Min Exi Total 2207 | 38 513 430 737 377 112 Wait 90 | . 7 23 59 1 . Move 1921 | 22 454 389 581 363 112 Hop 4 | . . . . 4 . Pick Up 14 | . 7 2 4 1 . Fast Attach 14 | . 6 . 8 . . Attach 5 | 2 . . 2 1 . Detach 4 | 2 . . 1 1 . Swap 12 | 1 1 3 3 4 . Drop 19 | 4 6 4 5 . . Fire 106 | 7 32 9 57 1 . Melee 14 | . . . 14 . . Ram . | . . . . . . Kick . | . . . . . . Crush 4 | . . . 3 1 . Escape Stasis . | . . . . . . Rewire . | . . . . . . Trap . | . . . . . . Miscellaneous . | . . . . . . Route ------- -11/Scrapyard -10/Materials (discovered 3 exits: *Mat / *Min x2) -10/Mines (discovered 2 exits: *Mat / [*Sub]) -9/Materials (discovered 2 exits: [*Mat] / *Min) -9/Mines (discovered 3 exits: [*Mat] / *Exi / [*Zio]) -9/Exiles History --------- Turn | Location | Event 26 | -11/Scrapyard | Discovered new exit (range 3) 64 | -11/Scrapyard | Entered Materials 309 | -10/Materials | Build established: Mutant 571 | -10/Materials | Discovered new exit (range 3) 819 | -10/Materials | Discovered new exit (range 7) 829 | -10/Materials | Discovered new exit (range 14) 914 | -10/Materials | Entered Mines 1087 | -10/Mines | Learned 2 Materials zone layouts 1090 | -10/Mines | Met a Derelict shopkeep closing up shop 1597 | -10/Mines | Discovered new exit (range 7) 1598 | -10/Mines | Learned location of Zion (-7) 1606 | -10/Mines | Discovered new exit (range 10) 1608 | -10/Mines | Entered Materials 1608 | -9/Materials | Evolved 2 slots: Propulsion x1, Utility x1 1609 | -9/Materials | Identified exit to Mines 2162 | -9/Materials | Lost 5 parts (2p1n1u1w) 2310 | -9/Materials | Repaired Arm. Treads 2383 | -9/Materials | Discovered new exit (range 13) 2855 | -9/Materials | Entered Mines 3038 | -9/Mines | A Derelict revealed a hidden shortcut to a safe place 3251 | -9/Mines | Met a Derelict who couldn't figure out how to use a Trap Extractor 3354 | -9/Mines | Learned Materials terminal intel 3384 | -9/Mines | Found a damaged Exp. Sensor Array with a note attached 3388 | -9/Mines | Found Prototype Device 3421 | -9/Mines | Learned location of Storage (-8) 3452 | -9/Mines | Discovered new exit (range 11) 3467 | -9/Mines | Deemed a non-threat by the Exiles lab entrance 3467 | -9/Mines | Discovered new exit (range 5) 3473 | -9/Mines | Entered Exiles 3511 | -9/Exiles | Met 8R-AWN 3542 | -9/Exiles | Met EX-HEX 3584 | -9/Exiles | Met EX-BIN 3607 | -9/Exiles | Aligned with FarCom system 3609 | -9/Exiles | Given EX-Vault access code 3650 | -9/Exiles | Opened EX-Vault 3656 | -9/Exiles | Self-destructed Last Messages --------------- Modified TNC 0b10 Alert Chip Cloak of Protection Skeleton Box Trap Reconfigurator Supersonic Drone Bay Army-in-a-Box PSU Rigger Chronowheel AWS/Thermal Latent Energy Streamer Gui. Plasma Cannon Firepult YOLO Cannon AWS/Gauss XL Autogun Array AWS/Autocannon Field Lobotomy Kit Longsword +1 Deploy-a-Sentry Map ----- +----------------------------------------------------+ | | | | | | | | | | | | | | | | | | | | | | | | | | | | | | | | | | | | | | | | | | | ??????????????????###########????????????????????? | | ??????????????????## ]##????????????????????? | | ??????????????????##= ##????????????????????? | | ??????????????????##= ! ##????????????????????? | | ??????????????????## @X##????????????????????? | | ??????????????????### ###????????????????????? | | ??????????????????##X ###????????????????????? | | ??????????????????### ##?????????????????????? | | ??????????????????### ##?######??????????????? | | ???????????????????## ##?######??????????????? | | ???????????????????## ##""""""##?????????????? | | ???????????????????## ## """##?????????????? | | ???????????????????## X""##?????????????? | | ?????????????######## ## """##?????????????? | | ?????????????######## ##""""""##?????????????? | | ?????????????""""""## ##?#####???????????????? | | ???????????##"""" ## ##?#####???????????????? | | ???????????##""X" ##?????????????????????? | | ???????????##" ##?????????????????????? | | ???????????##" ## ############???????????? | | ???????????##""""""## ############???????????? | | ???????????###"###### ###"""""""##???????????? | | ???????????? "###### ###"""""""##???????????? | | ??????????????????### ###"""""""##???????????? | | ??????????????????### ###"" """"##???????????? | | ??????????????????##" """"##???????????? | | ??????????????????##" """##???????????? | | ??????????????????##" """##???????????? | | ??????????????????##" """##???????????? | +----------------------------------------------------+ Best States ------------- Heat Dissipation 39 Energy Generation 14 Energy Capacity 265 Matter Stores 300 Matter Capacity 300 Sight Range 16 Terrain Scan Density 10 Armor Coverage 300 Evasion (%) 40 Recoil Reduction 3 Item Schematics ----------------- None Robot Schematics ------------------ None Fabricated ------------ Nothing Alien Tech Used ----------------- None Achievements -------------- None Challenges ------------ None Game ------ Seed SupersonicScanSuperbattery Manual? 0 Play Time 00:27:45 Cumulative 10.3 hours Start 2024.04.03 @ 18:06:40 End 2024.04.03 @ 18:48:29 Sessions 1 Manual Loads 0 Difficulty Rogue Special Mode None Game No. 15 Rogue 15 Adventurer 0 Explorer 0 Win Type - Total 0 Types 0/0/0/0/0/0/0/0/0 Lore% 19 Gallery% 15 Achievement% 24 Wizard Run 0 Options --------- Layout 0 ASCII 0 Keyboard 0 Movement Mouse Keybinds 0 Fullscreen 2 Font 24/Proggy Map View 76x50 Zoom Use 0% Tactical HUD 1 Map Filters NONE Filters NONE Steam 1 RUN: 3accc85f-f46e-4864-9080-547537eca779